fUST/lending_fUST_20240205
["ID","MTS","AMOUNT","RATE_DAILY","PERIOD"]
[313288241,1707089448586,-239.258481,0.00025463,2]
[313288242,1707089448595,-239.258473,0.00025463,2]
[313288243,1707089448604,-151.0,0.00025463,2]
[313288244,1707089448613,-1074.6,0.00025473,2]
[313288245,1707089448622,-500.0,0.00025473,2]
[313288246,1707089448631,-155.02325395,0.00025476,2]
[313288247,1707089448640,-6631.15638014,0.00025487,2]
[313288248,1707089448651,-566.39,0.00025566,2]
[313288249,1707089448660,-500.0,0.00025566,2]
[313288250,1707089448669,-500.0,0.00025566,2]
[313288251,1707089448677,-500.0,0.00025566,2]
[313288252,1707089448687,-500.0,0.00025566,2]
[313288253,1707089448696,-500.0,0.00025566,2]
[313288254,1707089448705,-500.0,0.00025566,2]
[313288255,1707089448714,-500.0,0.00025566,2]
[313288256,1707089448724,-500.0,0.00025566,2]
[313288257,1707089448733,-1458.82,0.00025566,2]
[313288258,1707089448743,-1223.73,0.00025566,2]
[313288259,1707089448752,-1392.44,0.00025566,2]
[313288260,1707089448761,-500.0,0.00025566,2]
[313288261,1707089448770,-992.03,0.00025566,2]
[313288262,1707089448779,-1573.65,0.00025566,2]
[313288263,1707089448788,-1573.01,0.00025566,2]
[313288264,1707089448797,-3725.13,0.00025566,2]
[313288265,1707089448806,-562.45,0.00025566,2]
[313288266,1707089448815,-721.12,0.00025566,2]
[313288267,1707089448824,-691.37,0.00025566,2]
[313288268,1707089448833,-440.19420197,0.00025566,2]
[313288269,1707089448914,-807.83,0.00025566,2]
[313288270,1707089448924,-501.27,0.00025566,2]
[313288271,1707089448933,-500.0,0.00025566,2]
[313288272,1707089448942,-985.91,0.00025566,2]
[313288273,1707089448951,-3344.46,0.00025566,2]
[313288274,1707089448960,-500.0,0.00025566,2]
[313288275,1707089448969,-500.0,0.00025566,2]
[313288276,1707089448978,-725.48,0.00025566,2]
[313288277,1707089448987,-500.0,0.00025566,2]
[313288278,1707089448996,-3396.65,0.00025566,2]
[313288279,1707089449006,-5766.64,0.00025566,2]
[313288280,1707089449015,-5364.88,0.00025566,2]
[313288281,1707089449024,-500.0,0.00025567,2]
[313288282,1707089449033,-500.0,0.00025567,2]
[313288283,1707089449042,-500.0,0.00025567,2]
[313288284,1707089449051,-500.0,0.00025567,2]
[313288285,1707089449060,-500.0,0.00025567,2]
[313288286,1707089449069,-500.0,0.00025567,2]
[313288287,1707089449078,-500.0,0.00025567,2]
[313288288,1707089449087,-754.55,0.00025567,2]
[313288289,1707089449097,-500.0,0.00025567,2]
[313288290,1707089449106,-500.0,0.00025567,2]
[313288291,1707089449115,-500.0,0.00025567,2]
[313288292,1707089449124,-500.0,0.00025567,2]
[313288293,1707089449133,-3347.0,0.0002565,2]
[313288294,1707089449142,-309.98450155,0.00025735,2]
[313288295,1707089449152,-178.76946716,0.00025735,2]
[313288296,1707089449161,-155.32972216,0.00025736,2]
[313288297,1707089449170,-444.38859977,0.00025737,2]
[313288349,1707090632111,-357.62281226,0.00023097,2]
[313288351,1707090632120,-631.00417298,0.00023098,2]
[313288353,1707090632129,-526.5215281,0.00023098,2]
[313288487,1707090643122,-310.26713198,0.00023098,2]
[313288488,1707090643132,-1187.18213597,0.00023466,2]
[313288489,1707090643142,-246.112991,0.00024122,2]
[313288490,1707090643151,-338.88540465,0.00025016,2]
[313288491,1707090643161,-500.0,0.00025016,2]
[313288492,1707090643172,-295.45050683,0.00025017,2]
[313288493,1707090643181,-5847.3829975,0.00025017,2]
[313288494,1707090643191,-500.0,0.00025017,2]
[313288495,1707090643200,-500.0,0.00025017,2]
[313288496,1707090643209,-985.05,0.00025017,2]
[313288497,1707090643218,-500.0,0.00025017,2]
[313288498,1707090643227,-500.0,0.00025017,2]
[313288499,1707090643236,-500.0,0.00025017,2]
[313288500,1707090643245,-500.0,0.00025017,2]
[313288501,1707090643254,-500.0,0.00025017,2]
[313288502,1707090643263,-412.70883207,0.00025017,2]
[313288503,1707090643825,-87.29116793,0.00025017,2]
[313288504,1707090643835,-418.714296,0.00025017,2]
[313288505,1707090643844,-500.0,0.00025017,2]
[313288506,1707090643853,-500.0,0.00025017,2]
[313288507,1707090643863,-235.16873754,0.00025017,2]
[313288508,1707090643875,-1041.29126246,0.00025017,2]
[313288509,1707090643884,-500.0,0.00025017,2]
[313288510,1707090643893,-1070.76,0.00025017,2]
[313288511,1707090643902,-1218.38,0.00025017,2]
[313288512,1707090643911,-868.03,0.00025017,2]
[313288513,1707090643922,-500.0,0.00025017,2]
[313288514,1707090643931,-630.98,0.00025017,2]
[313288515,1707090643940,-1376.94,0.00025017,2]
[313288516,1707090643950,-706.85,0.00025017,2]
[313288517,1707090643959,-2926.4,0.00025017,2]
[313288518,1707090643968,-500.0,0.00025017,2]
[313288519,1707090643981,-5045.81,0.00025017,2]
[313288520,1707090643990,-660.24,0.00025017,2]
[313288521,1707090643999,-500.0,0.00025017,2]
[313288522,1707090644009,-158.9473158,0.00025018,2]
[313288523,1707090644017,-1524.84777583,0.00025279,2]
[313288524,1707090644030,-1848.11222417,0.00025279,2]
[313288525,1707090644039,-500.0,0.00025279,2]
[313288526,1707090644048,-1919.68777583,0.00025279,2]
[313288703,1707091832323,-357.62281226,0.00022377,2]
[313288704,1707091832334,-934.53002551,0.00022378,2]
[313288738,1707091838387,-3273.91327912,0.00022378,2]
[313288739,1707091838401,-7080.0230457,0.00022378,2]
[313288747,1707091841623,-11186.24231078,0.00022378,2]
[313288748,1707091841635,-3171.72312632,0.00022378,2]
[313288749,1707091841646,-13036.22535313,0.00022378,2]
[313288766,1707091843310,-11317.34285944,0.00022378,2]
[313288767,1707091843320,-7419.4468281,0.00022504,2]
[313288768,1707091843330,-3904.11,0.00023088,3]
[313288769,1707091843339,-19301.94361921,0.00023098,2]
[313288770,1707091843350,-1495.45792412,0.00023179,2]
[313288771,1707091843359,-200.0,0.00023496,7]
[313288772,1707091843369,-500.0,0.00024657,2]
[313288773,1707091843379,-500.0,0.00024657,2]
[313288774,1707091843389,-500.0,0.00024657,2]
[313288775,1707091843399,-500.0,0.00024657,2]
[313288776,1707091843408,-500.0,0.00024657,2]
[313288777,1707091843418,-500.0,0.00024657,2]
[313288778,1707091843428,-500.0,0.00024657,2]
[313288779,1707091843438,-598.28095836,0.00024657,2]
[313288780,1707091843447,-4928.59,0.00024657,2]
[313288781,1707091843458,-368.50100014,0.00024657,2]
[313288782,1707091843469,-500.0,0.00024657,2]
[313288783,1707091843478,-500.0,0.00024657,2]
[313288784,1707091843487,-500.0,0.00024657,2]
[313288785,1707091843496,-1056.59,0.00024657,2]
[313288786,1707091843506,-500.0,0.00024657,2]
[313288787,1707091843515,-500.0,0.00024657,2]
[313288788,1707091843525,-1265.49,0.00024657,2]
[313288789,1707091843534,-1202.72,0.00024657,2]
[313288790,1707091843544,-1420.32,0.00024657,2]
[313288791,1707091843553,-852.69,0.00024657,2]
[313288792,1707091843562,-1363.25,0.00024657,2]
[313288793,1707091843571,-500.0,0.00024657,2]
[313288794,1707091843580,-512.98,0.00024657,2]
[313288795,1707091843589,-3341.16,0.00024657,2]
[313288796,1707091843598,-625.53,0.00024657,2]
[313288797,1707091843607,-625.78,0.00024657,2]
[313288798,1707091843616,-500.0,0.00024657,2]
[313288799,1707091843626,-698.23,0.00024657,2]
[313288800,1707091843635,-897.69,0.00024657,2]
[313288801,1707091843644,-500.0,0.00024657,2]
[313288802,1707091843654,-500.0,0.00024657,2]
[313288803,1707091843663,-500.0,0.00024657,2]
[313288804,1707091843672,-2902.67,0.00024657,2]
[313288805,1707091843681,-500.0,0.00024657,2]
[313288806,1707091843690,-655.63,0.00024657,2]
[313288807,1707091843699,-3222.4620527,0.00024657,2]
[313288808,1707091846373,-1689.6379473,0.00024657,2]
[313288809,1707091846383,-500.0,0.00024657,2]
[313288810,1707091846392,-3089.71,0.00024657,2]
[313288811,1707091846401,-500.0,0.00024657,2]
[313288812,1707091846411,-500.0,0.00024657,2]
[313288813,1707091846420,-500.0,0.00024657,2]
[313288814,1707091846430,-500.0,0.00024657,2]
[313288815,1707091846439,-500.0,0.00024657,2]
[313288816,1707091846450,-500.0,0.00024931,2]
[313288817,1707091846459,-500.0,0.00024931,2]
[313288818,1707091846470,-500.0,0.00024931,2]
[313288819,1707091846480,-500.0,0.00024931,2]
[313288820,1707091846490,-4928.59,0.00024931,2]
[313288821,1707091846499,-500.0,0.00024931,2]
[313288822,1707091846510,-500.0,0.00024931,2]
[313288823,1707091846519,-1056.59,0.00024931,2]
[313288824,1707091846529,-500.0,0.00024931,2]
[313288825,1707091846538,-1265.49,0.00024931,2]
[313288826,1707091846547,-1202.72,0.00024931,2]
[313288827,1707091846556,-1420.32,0.00024931,2]
[313288828,1707091846565,-852.69,0.00024931,2]
[313288829,1707091846574,-1363.25,0.00024931,2]
[313288830,1707091846583,-500.0,0.00024931,2]
[313288831,1707091846592,-512.98,0.00024931,2]
[313288832,1707091846601,-3341.16,0.00024931,2]
[313288833,1707091846610,-625.53,0.00024931,2]
[313288834,1707091846618,-625.78,0.00024931,2]
[313288835,1707091846628,-500.0,0.00024931,2]
[313288836,1707091846637,-698.23,0.00024931,2]
[313288837,1707091846646,-897.69,0.00024931,2]
[313288838,1707091846655,-500.0,0.00024931,2]
[313288839,1707091846665,-500.0,0.00024931,2]
[313288840,1707091846674,-2902.67,0.00024931,2]
[313288841,1707091846683,-655.63,0.00024931,2]
[313288842,1707091846692,-3629.69699767,0.00024931,2]
[313288843,1707091846710,-1282.40300233,0.00024931,2]
[313288844,1707091846719,-991.13011926,0.00024931,2]
[313288926,1707093034747,-525.75118754,0.00021882,2]
[313288950,1707093038636,-154.64259806,0.00021882,2]
[313288951,1707093038646,-905.63862374,0.00021883,2]
[313288952,1707093038657,-273.2180183,0.00021884,2]
[313288953,1707093038668,-166.666666,0.00021918,2]
[313288954,1707093038679,-19743.97000718,0.00022799,2]
[313288955,1707093038689,-19906.99800967,0.000228,2]
[313288956,1707093038699,-1695.43595528,0.00022831,2]
[313288957,1707093038710,-1868.50136376,0.00022861,2]
[313288958,1707093038724,-1728.52,0.00023084,3]
[313288959,1707093038734,-2965.34,0.00023084,3]
[313288960,1707093038744,-620.23996484,0.00023092,2]
[313288961,1707093038755,-1996.50298693,0.00023092,2]
[313288962,1707093038765,-181.19417615,0.00023092,2]
[313288963,1707093038776,-329.93073591,0.00023092,2]
[313288964,1707093038786,-214.48283987,0.00023092,2]
[313288965,1707093038796,-170.0925531,0.00023092,2]
[313288966,1707093038806,-166.87686881,0.00023092,2]
[313288967,1707093038816,-346.27817447,0.00023092,2]
[313288968,1707093038827,-164.49311095,0.00023092,2]
[313288969,1707093038836,-167.27020705,0.00023092,2]
[313288970,1707093038846,-270.68538235,0.00023092,2]
[313288971,1707093038855,-500.0,0.00023092,2]
[313288972,1707093038864,-262.76233732,0.00023092,2]
[313288973,1707093038874,-161.28090304,0.00023092,2]
[313288974,1707093038883,-213.6847704,0.00023093,2]
[313288975,1707093038894,-1138.92299914,0.00023093,2]
[313288976,1707093038903,-500.0,0.00023093,2]
[313288977,1707093038913,-605.38202448,0.00023093,2]
[313288978,1707093038922,-581.47567213,0.00023093,2]
[313288979,1707093038931,-552.27344151,0.00023093,2]
[313288980,1707093038941,-486.62979549,0.00023093,2]
[313288981,1707093038950,-610.2058347,0.00023093,2]
[313288982,1707093038960,-50000.0,0.00023094,2]
[313288983,1707093038973,-50000.0,0.00023094,2]
[313288984,1707093038986,-55184.49003949,0.00023094,2]
[313288985,1707093038995,-4584.21160957,0.00023094,2]
[313288986,1707093039005,-723.82288572,0.00023094,2]
[313288987,1707093039017,-200.0,0.00023945,7]
[313288988,1707093039027,-151.0,0.00024367,2]
[313288989,1707093039036,-678.33343681,0.00024567,2]
[313288990,1707093039046,-418.00471898,0.00024656,2]
[313288991,1707093039055,-500.0,0.00024657,2]
[313288992,1707093039065,-500.0,0.00024657,2]
[313288993,1707093039074,-1000.0,0.00024657,2]
[313288994,1707093039083,-500.0,0.00024657,2]
[313288995,1707093039092,-500.0,0.00024657,2]
[313288996,1707093039102,-151.0,0.00024657,2]
[313288997,1707093039112,-500.0,0.00024657,2]
[313288998,1707093039121,-500.0,0.00024657,2]
[313288999,1707093039130,-500.0,0.00024657,2]
[313289000,1707093039139,-151.0,0.00024657,2]
[313289001,1707093039149,-151.0,0.00024657,2]
[313289002,1707093039158,-500.0,0.00024657,2]
[313289003,1707093039168,-151.0,0.00024657,2]
[313289004,1707093039177,-151.0,0.00024657,2]
[313289005,1707093039186,-1522.0,0.00024657,2]
[313289006,1707093039196,-500.0,0.00024657,2]
[313289007,1707093039205,-310.15523794,0.00024657,2]
[313289008,1707093039215,-500.0,0.00024657,2]
[313289009,1707093039228,-500.0,0.00024657,2]
[313289010,1707093039237,-662.26,0.00024657,2]
[313289011,1707093039246,-500.0,0.00024657,2]
[313289012,1707093039256,-605.305833,0.00024657,2]
[313289013,1707093039265,-605.305833,0.00024657,2]
[313289014,1707093039274,-500.0,0.00024657,2]
[313289015,1707093039284,-605.305833,0.00024657,2]
[313289016,1707093039293,-605.305833,0.00024657,2]
[313289017,1707093039302,-500.0,0.00024657,2]
[313289018,1707093039311,-500.0,0.00024657,2]
[313289019,1707093039323,-500.0,0.00024657,2]
[313289020,1707093039332,-500.0,0.00024657,2]
[313289021,1707093039341,-903.35,0.00024657,2]
[313289022,1707093039350,-500.0,0.00024657,2]
[313289023,1707093039359,-3726.36,0.00024657,2]
[313289024,1707093039369,-500.0,0.00024657,2]
[313289025,1707093039378,-500.0,0.00024657,2]
[313289026,1707093039387,-500.0,0.00024657,2]
[313289027,1707093039398,-6884.29,0.00024657,2]
[313289028,1707093039407,-1743.79,0.00024657,2]
[313289029,1707093039417,-500.0,0.00024657,2]
[313289030,1707093039426,-500.0,0.00024657,2]
[313289031,1707093039436,-500.0,0.00024657,2]
[313289032,1707093039445,-1592.01,0.00024657,2]
[313289033,1707093039454,-500.0,0.00024657,2]
[313289034,1707093039463,-1059.98,0.00024657,2]
[313289035,1707093039475,-699.463039,0.00024657,2]
[313289036,1707093039485,-699.463039,0.00024657,2]
[313289037,1707093039494,-604.29,0.00024657,2]
[313289038,1707093039503,-1405.14,0.00024657,2]
[313289039,1707093039512,-699.463039,0.00024657,2]
[313289040,1707093039521,-699.463039,0.00024657,2]
[313289041,1707093039530,-151.0,0.00024657,2]
[313289042,1707093039539,-151.0,0.00024657,2]
[313289043,1707093039548,-1843.97,0.00024657,2]
[313289044,1707093039557,-803.77,0.00024657,2]
[313289045,1707093039566,-500.0,0.00024657,2]
[313289046,1707093039575,-1957.71,0.00024657,2]
[313289047,1707093039584,-500.0,0.00024657,2]
[313289048,1707093039593,-500.0,0.00024657,2]
[313289049,1707093039602,-4546.37,0.00024657,2]
[313289050,1707093039611,-708.9,0.00024657,2]
[313289051,1707093039620,-500.0,0.00024657,2]
[313289052,1707093039629,-806.2,0.00024657,2]
[313289053,1707093039638,-500.0,0.00024657,2]
[313289054,1707093039648,-930.16,0.00024657,2]
[313289055,1707093039657,-500.0,0.00024657,2]
[313289056,1707093039667,-643.46,0.00024657,2]
[313289057,1707093039676,-1279.24,0.00024657,2]
[313289058,1707093039686,-4095.99,0.00024657,2]
[313289059,1707093039695,-626.11,0.00024657,2]
[313289060,1707093039704,-500.0,0.00024657,2]
[313289061,1707093039713,-367.30966142,0.00024657,2]
[313289062,1707093039724,-6776.27,0.00024657,2]
[313289063,1707093039733,-241.17774505,0.00024657,2]
[313289064,1707093039742,-817.65,0.00024657,2]
[313289065,1707093039751,-401.48459765,0.00024658,2]
[313289066,1707093039760,-310.182342,0.00024678,2]
[313289067,1707093039769,-240.340874,0.00024678,2]
[313289068,1707093039778,-199.6142226,0.00024678,2]
[313289069,1707093039787,-2117.32402502,0.00024831,2]
[313289070,1707093039796,-200.0,0.00024929,2]
[313289071,1707093039806,-3035.00303308,0.00024929,2]
[313289072,1707093039814,-773.57734513,0.00024929,2]
[313289073,1707093039824,-2107.6155977,0.00024929,2]
[313289074,1707093039834,-151.0,0.00024929,2]
[313289075,1707093039843,-605.305833,0.00024929,2]
[313289076,1707093039852,-605.305833,0.00024929,2]
[313289077,1707093039862,-699.463039,0.00024929,2]
[313289078,1707093039871,-699.463039,0.00024929,2]
[313289079,1707093039880,-151.0,0.00024929,2]
[313289080,1707093039890,-554.94823898,0.0002493,2]
[313289081,1707093039899,-155.25883216,0.0002493,2]
[313289082,1707093039908,-300.0,0.00024931,2]
[313289083,1707093039917,-289.90306857,0.00024931,2]
[313289084,1707093039926,-1111.02241216,0.00024931,2]
[313289085,1707093039935,-10233.81431001,0.00024931,2]
[313289086,1707093039944,-621.56241516,0.00024931,2]
[313289087,1707093039953,-2087.88489741,0.00024931,2]
[313289088,1707093039962,-391.48234256,0.00024931,2]
[313289089,1707093039973,-155.02015262,0.00024931,2]
[313289090,1707093039982,-313.00418309,0.00024931,2]
[313289091,1707093039991,-155.02480397,0.00024931,2]
[313289092,1707093040000,-975.44009589,0.00024931,2]
[313289093,1707093040009,-500.0,0.00024931,2]
[313289094,1707093040018,-151.0,0.00024931,2]
[313289095,1707093040028,-283.142045,0.00024931,2]
[313289096,1707093040037,-500.0,0.00024931,2]
[313289097,1707093040046,-151.0,0.00024931,2]
[313289098,1707093040055,-151.0,0.00024931,2]
[313289099,1707093040064,-151.0,0.00024931,2]
[313289100,1707093040073,-381.24484773,0.00024931,2]
[313289101,1707093040083,-151.0,0.00024931,2]
[313289102,1707093040092,-151.0,0.00024931,2]
[313289103,1707093040102,-158.926865,0.00024931,2]
[313289104,1707093040111,-1522.0,0.00024931,2]
[313289105,1707093040120,-500.0,0.00024931,2]
[313289106,1707093040130,-375.14379586,0.00024931,2]
[313289107,1707093040139,-500.0,0.00024931,2]
[313289108,1707093040148,-662.26,0.00024931,2]
[313289109,1707093040157,-500.0,0.00024931,2]
[313289110,1707093040166,-605.305833,0.00024931,2]
[313289111,1707093040175,-605.305833,0.00024931,2]
[313289112,1707093040184,-605.305833,0.00024931,2]
[313289113,1707093040194,-500.0,0.00024931,2]
[313289114,1707093040203,-605.305833,0.00024931,2]
[313289115,1707093040212,-605.305833,0.00024931,2]
[313289116,1707093040224,-605.305833,0.00024931,2]
[313289117,1707093040233,-500.0,0.00024931,2]
[313289118,1707093040242,-500.0,0.00024931,2]
[313289119,1707093040251,-500.0,0.00024931,2]
[313289120,1707093040261,-903.35,0.00024931,2]
[313289121,1707093040270,-3726.36,0.00024931,2]
[313289122,1707093040354,-500.0,0.00024931,2]
[313289123,1707093040363,-500.0,0.00024931,2]
[313289124,1707093040372,-6884.29,0.00024931,2]
[313289125,1707093040381,-1743.79,0.00024931,2]
[313289126,1707093040390,-559.30867379,0.00024931,2]
[313289127,1707093040402,-251.37978832,0.00024931,2]
[313289128,1707093040412,-500.0,0.00024931,2]
[313289129,1707093040421,-1592.01,0.00024931,2]
[313289130,1707093040430,-500.0,0.00024931,2]
[313289131,1707093040439,-1059.98,0.00024931,2]
[313289132,1707093040448,-699.463039,0.00024931,2]
[313289133,1707093040457,-699.463039,0.00024931,2]
[313289134,1707093040466,-1405.14,0.00024931,2]
[313289135,1707093040477,-699.463039,0.00024931,2]
[313289136,1707093040486,-604.29,0.00024931,2]
[313289137,1707093040495,-699.463039,0.00024931,2]
[313289138,1707093040504,-699.463039,0.00024931,2]
[313289139,1707093040513,-699.463039,0.00024931,2]
[313289140,1707093040523,-151.0,0.00024931,2]
[313289141,1707093040532,-151.0,0.00024931,2]
[313289142,1707093040540,-151.0,0.00024931,2]
[313289143,1707093040549,-1843.97,0.00024931,2]
[313289144,1707093040558,-803.77,0.00024931,2]
[313289146,1707093040567,-500.0,0.00024931,2]
[313289147,1707093040577,-1957.71,0.00024931,2]
[313289148,1707093040586,-500.0,0.00024931,2]
[313289149,1707093040595,-4546.37,0.00024931,2]
[313289150,1707093040604,-708.9,0.00024931,2]
[313289151,1707093040613,-500.0,0.00024931,2]
[313289152,1707093040622,-806.2,0.00024931,2]
[313289154,1707093040631,-930.16,0.00024931,2]
[313289156,1707093040640,-643.46,0.00024931,2]
[313289157,1707093040649,-1279.24,0.00024931,2]
[313289158,1707093040658,-4095.99,0.00024931,2]
[313289159,1707093040667,-626.11,0.00024931,2]
[313289160,1707093040677,-500.0,0.00024931,2]
[313289161,1707093040687,-6776.27,0.00024931,2]
[313289162,1707093040696,-817.65,0.00024931,2]
[313289163,1707093040705,-306.6286346,0.000252,2]
[313289164,1707093040714,-259.3925583,0.000252,2]
[313289165,1707093040726,-280.9903511,0.000252,2]
[313289166,1707093040735,-4056.29496103,0.00025203,2]
[313289167,1707093040744,-7875.77430955,0.00025203,2]
[313289168,1707093040753,-156.79703858,0.00025203,2]
[313289169,1707093040762,-440.17460025,0.00025203,2]
[313289170,1707093040771,-155.03409384,0.00025203,2]
[313289171,1707093040780,-180.06935571,0.00025204,2]
[313289173,1707093040789,-426.66199522,0.00025204,2]
[313289174,1707093040798,-500.0,0.00025205,2]
[313289176,1707093040808,-500.0,0.00025205,2]
[313289178,1707093040817,-151.0,0.00025205,2]
[313289179,1707093040826,-151.0,0.00025205,2]
[313289180,1707093040835,-259.071256,0.00025205,2]
[313289181,1707093040844,-1522.0,0.00025205,2]
[313289182,1707093040853,-500.0,0.00025205,2]
[313289183,1707093040862,-500.0,0.00025205,2]
[313289184,1707093040872,-662.26,0.00025205,2]
[313289185,1707093040881,-291.41614454,0.00025205,2]
[313289186,1707093040890,-605.305833,0.00025205,2]
[313289187,1707093040899,-605.305833,0.00025205,2]
[313289188,1707093040908,-500.0,0.00025205,2]
[313289189,1707093040918,-605.305833,0.00025205,2]
[313289190,1707093040927,-605.305833,0.00025205,2]
[313289191,1707093040936,-500.0,0.00025205,2]
[313289192,1707093040945,-500.0,0.00025205,2]
[313289194,1707093040955,-500.0,0.00025205,2]
[313289195,1707093040964,-903.35,0.00025205,2]
[313289196,1707093040975,-3726.36,0.00025205,2]
[313289197,1707093040985,-500.0,0.00025205,2]
[313289198,1707093040994,-500.0,0.00025205,2]
[313289199,1707093041004,-6884.29,0.00025205,2]
[313289200,1707093041013,-1743.79,0.00025205,2]
[313289201,1707093041023,-500.0,0.00025205,2]
[313289202,1707093041032,-1592.01,0.00025205,2]
[313289203,1707093041041,-500.0,0.00025205,2]
[313289204,1707093041050,-1059.98,0.00025205,2]
[313289205,1707093041060,-1405.14,0.00025205,2]
[313289206,1707093041069,-699.463039,0.00025205,2]
[313289207,1707093041079,-699.463039,0.00025205,2]
[313289208,1707093041088,-604.29,0.00025205,2]
[313289209,1707093041097,-699.463039,0.00025205,2]
[313289210,1707093041106,-699.463039,0.00025205,2]
[313289211,1707093041116,-699.463039,0.00025205,2]
[313289212,1707093041125,-699.463039,0.00025205,2]
[313289213,1707093041134,-1843.97,0.00025205,2]
[313289214,1707093041143,-803.77,0.00025205,2]
[313289215,1707093041153,-500.0,0.00025205,2]
[313289216,1707093041163,-1957.71,0.00025205,2]
[313289217,1707093041172,-500.0,0.00025205,2]
[313289218,1707093041181,-4546.37,0.00025205,2]
[313289219,1707093041190,-708.9,0.00025205,2]
[313289220,1707093041199,-806.2,0.00025205,2]
[313289221,1707093041208,-930.16,0.00025205,2]
[313289222,1707093041218,-643.46,0.00025205,2]
[313289223,1707093041229,-1279.24,0.00025205,2]
[313289224,1707093041243,-4095.99,0.00025205,2]
[313289225,1707093041257,-626.11,0.00025205,2]
[313289226,1707093041270,-500.0,0.00025205,2]
[313289227,1707093041283,-6776.27,0.00025205,2]
[313289228,1707093041293,-817.65,0.00025205,2]
[313289229,1707093041305,-153.0,0.00025205,2]
[313289230,1707093041318,-153.0,0.00025205,2]
[313289231,1707093041332,-295.45050683,0.00025277,2]
[313289232,1707093041344,-765.62714724,0.00025279,2]
[313289233,1707093041356,-3251.83062565,0.00025279,2]
[313289234,1707093041369,-155.22119217,0.00025279,2]
[313289235,1707093041382,-156.25890723,0.00025279,2]
[313289236,1707093041394,-1650.19411677,0.00025279,2]
[313289237,1707093041405,-1828.98396681,0.00025279,2]
[313289238,1707093041416,-605.305833,0.00025279,2]
[313289239,1707093041428,-605.305833,0.00025279,2]
[313289240,1707093041441,-500.0,0.00025479,2]
[313289241,1707093041453,-500.0,0.00025479,2]
[313289242,1707093041465,-1522.0,0.00025479,2]
[313289243,1707093041479,-500.0,0.00025479,2]
[313289244,1707093041492,-500.0,0.00025479,2]
[313289245,1707093041505,-662.26,0.00025479,2]
[313289246,1707093041518,-605.305833,0.00025479,2]
[313289247,1707093041528,-500.0,0.00025479,2]
[313289248,1707093041538,-605.305829,0.00025479,2]
[313289249,1707093041552,-500.0,0.00025479,2]
[313289250,1707093041564,-500.0,0.00025479,2]
[313289251,1707093041576,-500.0,0.00025479,2]
[313289252,1707093041588,-903.35,0.00025479,2]
[313289253,1707093041600,-3726.36,0.00025479,2]
[313289254,1707093041610,-500.0,0.00025479,2]
[313289255,1707093041623,-500.0,0.00025479,2]
[313289256,1707093041635,-6884.29,0.00025479,2]
[313289257,1707093041647,-1743.79,0.00025479,2]
[313289258,1707093041659,-500.0,0.00025479,2]
[313289259,1707093041672,-1592.01,0.00025479,2]
[313289260,1707093041685,-500.0,0.00025479,2]
[313289261,1707093041698,-1059.98,0.00025479,2]
[313289262,1707093041710,-1405.14,0.00025479,2]
[313289263,1707093041724,-604.29,0.00025479,2]
[313289264,1707093041734,-699.463039,0.00025479,2]
[313289265,1707093041744,-699.463043,0.00025479,2]
[313289266,1707093041754,-1843.97,0.00025479,2]
[313289267,1707093041765,-803.77,0.00025479,2]
[313289268,1707093041776,-500.0,0.00025479,2]
[313289269,1707093041788,-1957.71,0.00025479,2]